[Event "EYCC Open-U10 2019"]
[Site "Bratislava"]
[Date "2019.08.08"]
[Round "7.48"]
[White "Arora, Abhiraaj"]
[Black "Tichy, Tomas"]
[Result "1-0"]
[ECO "B27"]
[WhiteElo "1463"]
[BlackElo "1810"]
[Annotator "NA"]
[PlyCount "75"]
[EventDate "2019.08.02"]
[EventType "swiss"]
[EventCountry "SVK"]
[SourceTitle "playchess.com"]
[Source "ChessBase"]
[SourceQuality "1"]
[TimeControl "40/5400+30:1800+30"]

1. e4 {[%emt 0:00:00]} c5 {[%emt 0:00:00]} 2. Nf3 {[%emt 0:00:00]} g6 {[%emt 0:00:00]} 3. d4 {[%emt 0:00:00]} cxd4 {[%emt 0:00:00]} 4. Qxd4 {[%emt 0:00:00]} Nf6 {[%emt 0:00:17]} 5. e5 {[%emt 0:00:04]} Nc6 {[%emt 0:00:45]} 6. Qa4 {[%emt 0:00:07]} Ng8 {[%emt 0:01:18]} 7. Nc3 {[%emt 0:01:09]} Bg7 {[%emt 0:00:58]} 8. Bf4 {[%emt 0:00:48]} f6 {[%emt 0:01:46]} 9. Qe4 {[%emt 0:08:45]} fxe5 {[%emt 0:06:44]} 10. Nxe5 {[%emt 0:00:30]} Nf6 {[%emt 0:02:48]} 11. Qe3 {[%emt 0:11:14]} O-O {[%emt 0:04:50]} 12. Nxc6 {[%emt 0:08:26]} bxc6 {[%emt 0:01:43]} 13. O-O-O {[%emt 0:01:55]} d5 {[%emt 0:11:00]} 14. f3 {[%emt 0:12:27]} Bd7 {[%emt 0:10:39]} 15. Ne2 {[%emt 0:05:51]} e6 {[%emt 0:07:54]} 16. g4 {[%emt 0:05:59]} Qc8 {[%emt 0:05:18]} 17. h4 {[%emt 0:07:00]} Qb7 {[%emt 0:12:42]} 18. Be5 {[%emt 0:00:30]} Qc8 {[%emt 0:05:35]} 19. h5 {[%emt 0:07:29]} Be8 {[%emt 0:04:55]} 20. hxg6 {[%emt 0:04:52]} hxg6 {[%emt 0:05:15]} 21. Bg2 {[%emt 0:05:30]} Rf7 {[%emt 0:02:55]} 22. Bf4 {[%emt 0:00:30]} a5 {[%emt 0:03:31]} 23. Bh6 {[%emt 0:04:51]} a4 {[%emt 0:03:20]} 24. a3 {[%emt 0:01:33]} Rb8 {[%emt 0:03:24]} 25. Qc3 {[%emt 0:06:49]} Ne4 {[%emt 0:01:58]} 26. Qd3 {[%emt 0:00:06]} Bxb2+ {[%emt 0:00:30]} 27. Kb1 {[%emt 0:00:30]} Bg7+ {[%emt 0:01:45]} 28. Kc1 {[%emt 0:00:45]} Nf2 {[%emt 0:00:31]} 29. Qxg6 Nxd1 {[%emt 0:00:18]} 30. Kxd1 {[%emt 0:00:50]} Rb1+ {[%emt 0:00:45]} 31. Nc1 {[%emt 0:00:18]} Re7 {[%emt 0:00:47]} 32. Qg5 {[%emt 0:00:30]} Qd7 {[%emt 0:00:53]} 33. f4 {[%emt 0:02:31]} Kf8 {[%emt 0:00:40]} 34. f5 {[%emt 0:00:27]} exf5 {[%emt 0:00:41]} 35. gxf5 {[%emt 0:00:24]} Bxh6 {[%emt 0:00:30]} 36. Qxh6+ {[%emt 0:00:30]} Kf7 {[%emt 0:00:30]} 37. Qg6+ {[%emt 0:00:10]} Kf8 {[%emt 0:00:28]} 38. Rh8# {[%emt 0:00:06]} 1-0

[Event "EYCC Open-U10 2019"]
[Site "Bratislava"]
[Date "2019.08.09"]
[Round "8.1"]
[White "Vetokhin, Savva"]
[Black "Finek, Vaclav"]
[Result "1/2-1/2"]
[ECO "C43"]
[WhiteElo "1954"]
[BlackElo "2043"]
[Annotator "NA"]
[PlyCount "89"]
[EventDate "2019.08.02"]
[EventType "swiss"]
[EventCountry "SVK"]
[SourceTitle "playchess.com"]
[Source "ChessBase"]
[SourceQuality "1"]
[TimeControl "40/5400+30:1800+30"]

1. e4 e5 2. Nf3 Nf6 3. d4 Nxe4 4. Bd3 d5 5. Nxe5 Nd7 6. Nxd7 Bxd7 7. O-O Bd6 8. c4 c6 9. Nc3 Nxc3 10. bxc3 O-O 11. Be3 dxc4 12. Bxc4 Qh4 13. g3 Qf6 14. Bd3 Bf5 15. c4 h5 16. Rb1 b6 17. Rb3 Bg4 18. Qc2 Bh3 19. Re1 Rae8 20. Be2 h4 21. Qd1 Qe6 22. c5 Bc7 23. Bf3 bxc5 24. dxc5 Ba5 25. Re2 Rd8 26. Bd4 Qc4 27. Rd3 Bf5 28. Be4 Bg4 29. f3 Be6 30. gxh4 f5 31. Bxc6 Bc3 32. Rxc3 Qxc3 33. Bxc3 Rxd1+ 34. Kf2 Bf7 35. Bb7 Rc1 36. Bb2 Rxc5 37. Ba3 Ra5 38. Bxf8 Kxf8 39. Bc8 g6 40. Kg3 Kg7 41. Be6 Bxe6 42. Rxe6 Rxa2 43. h5 gxh5 44. Kf4 Rxh2 45. Ra6 1/2-1/2

[Event "EYCC Open-U10 2019"]
[Site "Bratislava"]
[Date "2019.08.09"]
[Round "8.2"]
[White "Azadaliyev, Jahandar"]
[Black "Usov, Aleksandr E."]
[Result "1-0"]
[ECO "D45"]
[WhiteElo "1905"]
[BlackElo "1809"]
[Annotator "NA"]
[PlyCount "105"]
[EventDate "2019.08.02"]
[EventType "swiss"]
[EventCountry "SVK"]
[SourceTitle "playchess.com"]
[Source "ChessBase"]
[SourceQuality "1"]
[TimeControl "40/5400+30:1800+30"]

1. d4 d5 2. c4 c6 3. e3 Nf6 4. Nf3 e6 5. Nc3 Nbd7 6. Qc2 b6 7. Bd3 Bb7 8. e4 dxe4 9. Nxe4 Nxe4 10. Bxe4 Nf6 11. O-O Qc7 12. Re1 Bb4 13. Bd2 Bxd2 14. Nxd2 O-O-O 15. Qc3 h5 16. a4 c5 17. Bxb7+ Kxb7 18. dxc5 Qxc5 19. a5 Qf5 20. Nf3 Ne4 21. Qa3 bxa5 22. c5 Rd7 23. c6+ Kxc6 24. Qa4+ Qb5 25. Ne5+ Kb6 26. Nxd7+ Ka6 27. Qxb5+ Kxb5 28. Rxe4 Rd8 29. Ne5 Rd5 30. Nxf7 a6 31. Rxe6 a4 32. Nd6+ Kb4 33. Re4+ Kb3 34. Nc4 a5 35. Ra3+ Kc2 36. Ne3+ Kxb2 37. Nxd5 Kxa3 38. Nc3 Kb3 39. Rxa4 Kxc3 40. Rxa5 h4 41. Kf1 Kd3 42. Ra3+ Ke4 43. Ke2 Kf5 44. Ke3 Kg4 45. Ra5 g5 46. Ke4 h3 47. gxh3+ Kh4 48. Ra3 Kh5 49. Kf5 Kh4 50. Rg3 Kh5 51. h4 Kxh4 52. f4 Kh5 53. Rh3# 1-0

[Event "EYCC Open-U10 2019"]
[Site "Bratislava"]
[Date "2019.08.09"]
[Round "8.3"]
[White "Materia, Marco"]
[Black "Navoyan, Gagik"]
[Result "1/2-1/2"]
[ECO "E47"]
[WhiteElo "2243"]
[BlackElo "1670"]
[Annotator "NA"]
[PlyCount "125"]
[EventDate "2019.08.02"]
[EventType "swiss"]
[EventCountry "SVK"]
[SourceTitle "playchess.com"]
[Source "ChessBase"]
[SourceQuality "1"]
[TimeControl "40/5400+30:1800+30"]

1. d4 {[%emt 0:00:00]} Nf6 {[%emt 0:00:00]} 2. c4 {[%emt 0:00:00]} e6 {[%emt 0:00:00]} 3. Nc3 {[%emt 0:00:00]} Bb4 {[%emt 0:00:00]} 4. e3 {[%emt 0:00:00]} O-O {[%emt 0:00:07]} 5. Bd3 {[%emt 0:00:12]} c5 {[%emt 0:00:07]} 6. Nf3 {[%emt 0:00:21]} Nc6 {[%emt 0:00:11]} 7. O-O {[%emt 0:00:58]} d5 {[%emt 0:00:13]} 8. a3 Ba5 {[%emt 0:02:01]} 9. h3 {[%emt 0:07:54]} dxc4 {[%emt 0:03:32]} 10. Bxc4 {[%emt 0:00:06]} cxd4 {[%emt 0:00:14]} 11. exd4 {[%emt 0:00:25]} Bb6 {[%emt 0:00:25]} 12. Be3 {[%emt 0:01:52]} Ne7 {[%emt 0:02:31]} 13. Qd3 {[%emt 0:05:44]} Nf5 {[%emt 0:04:32]} 14. Rad1 {[%emt 0:01:41]} Bd7 {[%emt 0:01:06]} 15. Ne5 {[%emt 0:07:26]} Bc6 {[%emt 0:03:03]} 16. Nxc6 {[%emt 0:04:15]} bxc6 {[%emt 0:00:06]} 17. Ba2 {[%emt 0:15:20]} Bc7 {[%emt 0:01:48]} 18. Ne4 {[%emt 0:00:35]} Nxe4 {[%emt 0:02:36]} 19. Qxe4 {[%emt 0:00:06]} Qd6 {[%emt 0:00:15]} 20. Rfe1 {[%emt 0:00:47]} Rab8 {[%emt 0:02:56]} 21. Rd2 {[%emt 0:04:12]} Qh2+ {[%emt 0:01:23]} 22. Kf1 {[%emt 0:00:06]} Nxe3+ {[%emt 0:00:41]} 23. fxe3 {[%emt 0:01:43]} Bg3 {[%emt 0:01:53]} 24. Red1 {[%emt 0:02:00]} Rb5 {[%emt 0:08:51]} 25. Bb1 {[%emt 0:13:34]} Rf5+ {[%emt 0:06:27]} 26. Ke2 {[%emt 0:00:09]} c5 {[%emt 0:04:07]} 27. dxc5 {[%emt 0:14:26]} g6 {[%emt 0:11:35]} 28. b4 {[%emt 0:02:05]} Be5 {[%emt 0:13:15]} 29. Kd3 {[%emt 0:03:53]} Qg3 {[%emt 0:05:23]} 30. Kc4 {[%emt 0:00:55]} Bc7 {[%emt 0:01:23]} 31. Qg4 {[%emt 0:01:27]} Qxe3 {[%emt 0:01:59]} 32. Bxf5 {[%emt 0:00:09]} exf5 {[%emt 0:00:05]} 33. Qf3 {[%emt 0:01:24]} Qe6+ {[%emt 0:01:24]} 34. Qd5 {[%emt 0:00:06]} Qf6 {[%emt 0:00:35]} 35. Kb3 {[%emt 0:03:16]} Re8 {[%emt 0:01:31]} 36. Qc4 {[%emt 0:01:24]} Re4 {[%emt 0:01:52]} 37. Rd4 {[%emt 0:01:27]} Re3+ {[%emt 0:00:26]} 38. Ka2 {[%emt 0:01:11]} Be5 {[%emt 0:00:43]} 39. R4d3 {[%emt 0:01:53]} Re2+ {[%emt 0:00:22]} 40. R1d2 {[%emt 0:00:00]} Re1 {[%emt 0:00:00]} 41. Rd1 {[%emt 0:07:03]} Re2+ {[%emt 0:05:01]} 42. R3d2 {[%emt 0:00:10]} Re4 {[%emt 0:00:45]} 43. Qb3 {[%emt 0:01:50]} Kg7 {[%emt 0:03:29]} 44. Rc2 {[%emt 0:05:21]} f4 {[%emt 0:05:07]} 45. c6 {[%emt 0:04:23]} Re3 {[%emt 0:01:11]} 46. Qc4 {[%emt 0:00:51]} Bc7 {[%emt 0:00:36]} 47. Rd7 {[%emt 0:01:06]} Re7 {[%emt 0:05:20]} 48. Rxe7 {[%emt 0:02:06]} Qxe7 {[%emt 0:00:06]} 49. Qd4+ {[%emt 0:00:04]} Kh6 {[%emt 0:01:28]} 50. Kb3 {[%emt 0:00:59]} Qe6+ {[%emt 0:01:40]} 51. Qc4 {[%emt 0:00:04]} Qf5 {[%emt 0:01:12]} 52. Rc3 {[%emt 0:00:57]} Qb1+ {[%emt 0:04:20]} 53. Ka4 {[%emt 0:00:03]} Qd1+ {[%emt 0:02:07]} 54. Kb5 {[%emt 0:01:00]} f6 {[%emt 0:11:07]} 55. Rd3 {[%emt 0:05:42]} Qe2 {[%emt 0:00:44]} 56. Rd7 {[%emt 0:00:54]} a6+ {[%emt 0:00:49]} 57. Kc5 {[%emt 0:00:20]} Bb6+ {[%emt 0:00:35]} 58. Kxb6 {[%emt 0:00:14]} Qxc4 {[%emt 0:00:03]} 59. Rd6 {[%emt 0:01:10]} Qb5+ {[%emt 0:04:38]} 60. Ka7 {[%emt 0:00:08]} Qc4 {[%emt 0:02:29]} 61. Kb6 {[%emt 0:01:32]} Qb5+ {[%emt 0:00:15]} 62. Ka7 {[%emt 0:00:21]} Qc4 {[%emt 0:00:01]} 63. Kb6 {[%emt 0:00:20]} 1/2-1/2

[Event "EYCC Open-U10 2019"]
[Site "Bratislava"]
[Date "2019.08.09"]
[Round "8.4"]
[White "Asikainen, Eeli"]
[Black "Zverev, Lev"]
[Result "0-1"]
[ECO "C96"]
[WhiteElo "1447"]
[BlackElo "1849"]
[Annotator "NA"]
[PlyCount "62"]
[EventDate "2019.08.02"]
[EventType "swiss"]
[EventCountry "SVK"]
[SourceTitle "playchess.com"]
[Source "ChessBase"]
[SourceQuality "1"]
[TimeControl "40/5400+30:1800+30"]

1. e4 {[%emt 0:00:00]} e5 {[%emt 0:00:00]} 2. Nf3 {[%emt 0:00:00]} Nc6 {[%emt 0:00:00]} 3. Bb5 {[%emt 0:00:00]} a6 {[%emt 0:00:00]} 4. Ba4 {[%emt 0:00:00]} Nf6 {[%emt 0:00:12]} 5. O-O {[%emt 0:00:14]} Be7 {[%emt 0:00:06]} 6. Re1 {[%emt 0:00:15]} b5 {[%emt 0:00:08]} 7. Bb3 {[%emt 0:00:12]} d6 {[%emt 0:00:08]} 8. c3 {[%emt 0:00:29]} O-O {[%emt 0:00:07]} 9. h3 {[%emt 0:00:30]} Na5 {[%emt 0:00:08]} 10. Bc2 {[%emt 0:00:20]} c5 {[%emt 0:00:11]} 11. d4 {[%emt 0:00:42]} Nd7 {[%emt 0:00:08]} 12. Nbd2 {[%emt 0:02:02]} exd4 {[%emt 0:00:39]} 13. cxd4 {[%emt 0:00:16]} Nc6 {[%emt 0:00:07]} 14. d5 {[%emt 0:04:54]} Nce5 {[%emt 0:00:06]} 15. Nxe5 {[%emt 0:00:39]} Nxe5 {[%emt 0:00:08]} 16. f4 {[%emt 0:01:50]} Ng6 {[%emt 0:00:14]} 17. Nf3 {[%emt 0:02:13]} Bh4 {[%emt 0:00:19]} 18. Nxh4 {[%emt 0:01:34]} Qxh4 {[%emt 0:00:08]} 19. Rf1 {[%emt 0:04:00]} f5 {[%emt 0:01:05]} 20. e5 {[%emt 0:13:58]} Bb7 {[%emt 0:01:40]} 21. exd6 {[%emt 0:05:27]} Rad8 {[%emt 0:00:20]} 22. Be3 {[%emt 0:04:31]} c4 {[%emt 0:02:29]} 23. Qf3 {[%emt 0:05:07]} Qf6 {[%emt 0:02:30]} 24. Qf2 {[%emt 0:08:09]} Bxd5 {[%emt 0:05:59]} 25. Bb6 {[%emt 0:00:36]} Rd7 {[%emt 0:00:16]} 26. Rad1 {[%emt 0:02:18]} Bb7 {[%emt 0:00:11]} 27. Bd4 {[%emt 0:01:33]} Qd8 {[%emt 0:04:20]} 28. Be5 {[%emt 0:01:53]} Nh4 {[%emt 0:00:17]} 29. Kh2 {[%emt 0:04:49]} Nxg2 {[%emt 0:02:54]} 30. Rg1 {[%emt 0:01:31]} Nh4 {[%emt 0:00:10]} 31. Qd4 {[%emt 0:01:32]} Nf3+ {[%emt 0:00:38]} 0-1

[Event "EYCC Open-U10 2019"]
[Site "Bratislava"]
[Date "2019.08.09"]
[Round "8.5"]
[White "Golovchenko, Bogdan"]
[Black "Yonal, Timur"]
[Result "1-0"]
[ECO "A05"]
[WhiteElo "1723"]
[BlackElo "1512"]
[Annotator "NA"]
[PlyCount "113"]
[EventDate "2019.08.02"]
[EventType "swiss"]
[EventCountry "SVK"]
[SourceTitle "playchess.com"]
[Source "ChessBase"]
[SourceQuality "1"]
[TimeControl "40/5400+30:1800+30"]

1. Nf3 {[%emt 0:00:00]} Nf6 {[%emt 0:00:00]} 2. d4 {[%emt 0:00:00]} e6 {[%emt 0:00:00]} 3. Bf4 {[%emt 0:00:17]} c5 {[%emt 0:01:31]} 4. e3 {[%emt 0:00:27]} Qb6 {[%emt 0:02:28]} 5. Qc1 {[%emt 0:02:15]} Nh5 {[%emt 0:15:35]} 6. Bg3 {[%emt 0:00:30]} Be7 {[%emt 0:06:12]} 7. c3 {[%emt 0:00:43]} O-O {[%emt 0:11:55]} 8. Bd3 {[%emt 0:02:15]} Nc6 {[%emt 0:05:31]} 9. Nbd2 {[%emt 0:01:06]} d5 {[%emt 0:07:23]} 10. Ne5 {[%emt 0:04:51]} Re8 {[%emt 0:04:31]} 11. f4 {[%emt 0:03:05]} f5 {[%emt 0:04:58]} 12. Bf2 {[%emt 0:03:55]} cxd4 {[%emt 0:01:01]} 13. cxd4 {[%emt 0:02:16]} Nxe5 {[%emt 0:08:16]} 14. fxe5 {[%emt 0:02:20]} g6 {[%emt 0:00:39]} 15. h3 {[%emt 0:02:14]} f4 {[%emt 0:12:02]} 16. O-O {[%emt 0:21:43]} Bd7 {[%emt 0:01:58]} 17. Nb3 {[%emt 0:04:23]} Rac8 {[%emt 0:00:56]} 18. Qd2 {[%emt 0:00:41]} Bb5 19. Bxb5 Qxb5 {[%emt 0:06:23]} 20. exf4 {[%emt 0:02:09]} Bb4 {[%emt 0:00:09]} 21. Qe3 {[%emt 0:01:11]} Rc2 22. g4 {[%emt 0:03:54]} Ng7 {[%emt 0:02:07]} 23. Rfc1 {[%emt 0:01:54]} Rec8 {[%emt 0:03:01]} 24. Rxc2 {[%emt 0:00:25]} Rxc2 {[%emt 0:00:05]} 25. Rc1 {[%emt 0:00:10]} Bd2 {[%emt 0:02:08]} 26. Nxd2 {[%emt 0:02:00]} Rxc1+ {[%emt 0:00:05]} 27. Kg2 {[%emt 0:00:05]} Qxb2 {[%emt 0:00:44]} 28. f5 {[%emt 0:01:45]} Rc7 {[%emt 0:02:04]} 29. Qg5 {[%emt 0:00:50]} Rf7 {[%emt 0:01:27]} 30. f6 {[%emt 0:01:56]} Ne8 {[%emt 0:00:04]} 31. h4 {[%emt 0:00:10]} Qxa2 {[%emt 0:00:53]} 32. h5 {[%emt 0:00:38]} Qc2 {[%emt 0:00:03]} 33. Nf3 {[%emt 0:00:29]} Qe4 {[%emt 0:00:11]} 34. Kg3 {[%emt 0:00:31]} Rc7 {[%emt 0:00:22]} 35. Nh4 {[%emt 0:03:17]} Rc3+ {[%emt 0:01:19]} 36. Kh2 {[%emt 0:00:07]} Rc2 {[%emt 0:00:08]} 37. hxg6 {[%emt 0:01:28]} hxg6 {[%emt 0:00:55]} 38. Kg3 {[%emt 0:01:34]} Qd3+ {[%emt 0:01:00]} 39. Kg2 {[%emt 0:00:56]} Ra2 {[%emt 0:00:51]} 40. Nxg6 {[%emt 0:00:00]} Qe4+ {[%emt 0:00:00]} 41. Kg3 {[%emt 0:01:14]} Ra3+ {[%emt 0:15:26]} 42. Kh2 {[%emt 0:00:45]} Rh3+ {[%emt 0:00:34]} 43. Kxh3 {[%emt 0:00:16]} Qh1+ {[%emt 0:00:04]} 44. Kg3 {[%emt 0:00:06]} Qh7 {[%emt 0:00:11]} 45. Ne7+ {[%emt 0:00:51]} Kh8 {[%emt 0:00:12]} 46. Qg6 {[%emt 0:00:23]} Qxg6 {[%emt 0:00:56]} 47. Nxg6+ {[%emt 0:00:05]} Kg8 {[%emt 0:00:05]} 48. Ne7+ {[%emt 0:00:05]} Kf8 {[%emt 0:00:20]} 49. g5 {[%emt 0:00:13]} a5 {[%emt 0:00:05]} 50. g6 {[%emt 0:00:11]} a4 {[%emt 0:00:11]} 51. Be3 {[%emt 0:00:04]} a3 {[%emt 0:00:13]} 52. Bh6+ {[%emt 0:00:05]} Ng7 {[%emt 0:00:15]} 53. Bxg7+ {[%emt 0:00:16]} Ke8 {[%emt 0:00:04]} 54. f7+ {[%emt 0:00:12]} Kd7 {[%emt 0:00:21]} 55. f8=Q {[%emt 0:00:08]} a2 {[%emt 0:00:07]} 56. Qc8+ {[%emt 0:00:03]} Kxe7 {[%emt 0:00:06]} 57. Bf8# {[%emt 0:00:08]} 1-0

[Event "EYCC Open-U10 2019"]
[Site "Bratislava"]
[Date "2019.08.09"]
[Round "8.6"]
[White "Averin, Nikolay"]
[Black "Royal, Shreyas"]
[Result "1/2-1/2"]
[ECO "C54"]
[WhiteElo "1840"]
[BlackElo "1996"]
[Annotator "NA"]
[PlyCount "147"]
[EventDate "2019.08.02"]
[EventType "swiss"]
[EventCountry "SVK"]
[SourceTitle "playchess.com"]
[Source "ChessBase"]
[SourceQuality "1"]
[TimeControl "40/5400+30:1800+30"]

1. e4 {[%emt 0:00:00]} e5 {[%emt 0:00:13]} 2. Nf3 {[%emt 0:00:00]} Nc6 {[%emt 0:00:32]} 3. Bc4 {[%emt 0:00:00]} Bc5 {[%emt 0:00:37]} 4. c3 {[%emt 0:00:00]} Nf6 {[%emt 0:00:30]} 5. d4 {[%emt 0:00:00]} exd4 {[%emt 0:00:43]} 6. e5 {[%emt 0:00:06]} d5 {[%emt 0:01:02]} 7. Bb5 {[%emt 0:00:21]} Ne4 {[%emt 0:01:37]} 8. cxd4 {[%emt 0:00:14]} Bb6 {[%emt 0:01:38]} 9. Nc3 {[%emt 0:00:16]} O-O {[%emt 0:02:54]} 10. Be3 {[%emt 0:01:33]} Bg4 {[%emt 0:01:24]} 11. h3 {[%emt 0:07:16]} Be6 {[%emt 0:04:56]} 12. O-O {[%emt 0:07:04]} Kh8 {[%emt 0:09:16]} 13. Qa4 {[%emt 0:08:24]} Ne7 {[%emt 0:15:54]} 14. Qc2 {[%emt 0:11:10]} Nxc3 {[%emt 0:04:47]} 15. Qxc3 {[%emt 0:02:32]} c6 {[%emt 0:05:22]} 16. Bd3 {[%emt 0:01:15]} Qd7 {[%emt 0:00:33]} 17. Nh4 {[%emt 0:22:42]} Ng6 {[%emt 0:00:40]} 18. Bxg6 {[%emt 0:03:24]} fxg6 {[%emt 0:00:12]} 19. f4 {[%emt 0:01:22]} Qe7 {[%emt 0:03:56]} 20. Nf3 {[%emt 0:00:49]} Rac8 {[%emt 0:01:06]} 21. Rac1 {[%emt 0:03:54]} Bf5 {[%emt 0:02:44]} 22. Kh2 {[%emt 0:03:57]} a5 {[%emt 0:07:28]} 23. g4 {[%emt 0:01:33]} Bd7 {[%emt 0:00:05]} 24. Kg3 {[%emt 0:04:06]} Rc7 {[%emt 0:01:22]} 25. Rc2 {[%emt 0:02:04]} Rfc8 {[%emt 0:00:22]} 26. Rfc1 {[%emt 0:00:55]} Be6 {[%emt 0:03:24]} 27. a3 {[%emt 0:00:47]} Qd7 {[%emt 0:01:39]} 28. b4 {[%emt 0:03:18]} axb4 {[%emt 0:00:06]} 29. Qxb4 {[%emt 0:00:19]} Ba7 {[%emt 0:00:26]} 30. Ng5 {[%emt 0:01:29]} h6 {[%emt 0:00:40]} 31. Nxe6 {[%emt 0:00:36]} Qxe6 {[%emt 0:00:07]} 32. a4 {[%emt 0:00:38]} b6 {[%emt 0:00:29]} 33. Qd6 {[%emt 0:05:31]} Qe8 {[%emt 0:01:01]} 34. f5 {[%emt 0:02:08]} gxf5 {[%emt 0:00:13]} 35. gxf5 {[%emt 0:00:11]} Rd7 {[%emt 0:01:39]} 36. Qe6 {[%emt 0:03:09]} c5 {[%emt 0:00:36]} 37. Qxe8+ {[%emt 0:03:54]} Rxe8 {[%emt 0:00:04]} 38. e6 {[%emt 0:00:32]} Rdd8 {[%emt 0:04:20]} 39. dxc5 {[%emt 0:00:00]} d4 {[%emt 0:00:00]} 40. cxb6 {[%emt 0:00:00]} Bxb6 {[%emt 0:00:00]} 41. Bd2 {[%emt 0:05:49]} d3 {[%emt 0:01:52]} 42. Rc6 {[%emt 0:00:21]} Bd4 {[%emt 0:00:11]} 43. R1c4 {[%emt 0:10:43]} Bf6 {[%emt 0:00:30]} 44. h4 {[%emt 0:01:20]} Rd5 {[%emt 0:00:16]} 45. R6c5 {[%emt 0:11:16]} Rdd8 {[%emt 0:00:12]} 46. a5 {[%emt 0:02:05]} Be7 {[%emt 0:00:17]} 47. Rc6 {[%emt 0:00:26]} Rf8 {[%emt 0:00:06]} 48. a6 {[%emt 0:03:09]} Rxf5 {[%emt 0:00:04]} 49. Rc8 {[%emt 0:00:30]} Rff8 {[%emt 0:00:26]} 50. Rxd8 {[%emt 0:00:18]} Rxd8 {[%emt 0:00:05]} 51. Kf3 {[%emt 0:00:31]} Kh7 {[%emt 0:01:59]} 52. Ra4 {[%emt 0:00:20]} Kg6 {[%emt 0:01:34]} 53. Ke4 {[%emt 0:01:03]} Bxh4 {[%emt 0:01:30]} 54. Rd4 {[%emt 0:00:46]} Ra8 {[%emt 0:01:03]} 55. Rd6 {[%emt 0:00:20]} Kf6 {[%emt 0:01:14]} 56. Bc3+ {[%emt 0:00:48]} Ke7 {[%emt 0:00:17]} 57. Rc6 {[%emt 0:00:24]} Rd8 {[%emt 0:01:48]} 58. Bb4+ {[%emt 0:00:17]} Ke8 {[%emt 0:00:08]} 59. Bd2 {[%emt 0:00:20]} Bg5 {[%emt 0:00:38]} 60. Bxg5 {[%emt 0:00:37]} hxg5 {[%emt 0:00:33]} 61. Rc1 {[%emt 0:00:41]} Ke7 {[%emt 0:00:53]} 62. Rd1 {[%emt 0:00:15]} Rd6 {[%emt 0:00:20]} 63. Ra1 {[%emt 0:01:07]} d2 {[%emt 0:01:56]} 64. a7 {[%emt 0:00:27]} Rd8 {[%emt 0:00:05]} 65. Rd1 {[%emt 0:00:18]} Ra8 {[%emt 0:00:29]} 66. Rxd2 {[%emt 0:00:11]} Rxa7 {[%emt 0:00:04]} 67. Rd7+ {[%emt 0:01:03]} Rxd7 {[%emt 0:00:09]} 68. exd7 {[%emt 0:00:01]} g4 {[%emt 0:00:51]} 69. Kf4 {[%emt 0:00:10]} g3 {[%emt 0:00:32]} 70. Kxg3 {[%emt 0:00:08]} Kxd7 {[%emt 0:00:03]} 71. Kg4 {[%emt 0:00:17]} Ke7 {[%emt 0:00:21]} 72. Kg5 {[%emt 0:00:05]} Kf8 {[%emt 0:00:08]} 73. Kg6 {[%emt 0:00:06]} Kg8 {[%emt 0:00:05]} 74. Kg5 {[%emt 0:00:05]} 1/2-1/2

[Event "EYCC Open-U10 2019"]
[Site "Bratislava"]
[Date "2019.08.09"]
[Round "8.7"]
[White "Warchol, Kamil"]
[Black "Toktomushev, Teimur"]
[Result "1/2-1/2"]
[ECO "B31"]
[WhiteElo "1573"]
[BlackElo "1977"]
[Annotator "NA"]
[PlyCount "80"]
[EventDate "2019.08.02"]
[EventType "swiss"]
[EventCountry "SVK"]
[SourceTitle "playchess.com"]
[Source "ChessBase"]
[SourceQuality "1"]
[TimeControl "40/5400+30:1800+30"]

1. e4 {[%emt 0:00:00]} c5 {[%emt 0:00:00]} 2. Nf3 {[%emt 0:00:12]} Nc6 {[%emt 0:00:00]} 3. Bb5 {[%emt 0:00:45]} g6 {[%emt 0:00:00]} 4. Bxc6 {[%emt 0:00:36]} dxc6 {[%emt 0:00:00]} 5. d3 {[%emt 0:00:45]} Bg7 {[%emt 0:00:04]} 6. h3 {[%emt 0:00:47]} b6 {[%emt 0:05:11]} 7. a4 {[%emt 0:06:52]} a5 {[%emt 0:00:31]} 8. O-O {[%emt 0:05:18]} Nh6 {[%emt 0:06:14]} 9. Na3 {[%emt 0:08:09]} f6 {[%emt 0:01:13]} 10. Be3 {[%emt 0:03:17]} e5 {[%emt 0:03:34]} 11. c3 {[%emt 0:01:58]} Ba6 {[%emt 0:18:49]} 12. Nc4 {[%emt 0:07:55]} Bxc4 {[%emt 0:02:35]} 13. dxc4 {[%emt 0:00:42]} Qc7 {[%emt 0:00:55]} 14. b4 {[%emt 0:16:00]} cxb4 {[%emt 0:06:16]} 15. cxb4 {[%emt 0:01:48]} axb4 {[%emt 0:13:58]} 16. c5 {[%emt 0:00:57]} bxc5 {[%emt 0:01:12]} 17. Bxc5 {[%emt 0:00:52]} Bf8 {[%emt 0:01:15]} 18. Bxf8 {[%emt 0:02:22]} Kxf8 {[%emt 0:01:26]} 19. Qd2 {[%emt 0:01:02]} Kg7 {[%emt 0:00:24]} 20. Qxb4 {[%emt 0:01:25]} Rhb8 {[%emt 0:00:14]} 21. Qc3 {[%emt 0:01:55]} Ra5 {[%emt 0:03:27]} 22. Rfc1 {[%emt 0:04:27]} Rba8 {[%emt 0:07:31]} 23. Qc4 {[%emt 0:09:25]} c5 {[%emt 0:05:57]} 24. Nd2 {[%emt 0:03:21]} Qc6 {[%emt 0:04:28]} 25. Nb3 {[%emt 0:05:08]} Rxa4 {[%emt 0:00:53]} 26. Rxa4 {[%emt 0:00:46]} Rxa4 {[%emt 0:00:11]} 27. Qxc5 {[%emt 0:00:36]} Qxc5 {[%emt 0:01:35]} 28. Nxc5 {[%emt 0:00:16]} Ra7 {[%emt 0:01:08]} 29. f3 {[%emt 0:01:56]} Re7 {[%emt 0:00:38]} 30. Kf2 {[%emt 0:00:54]} Nf7 {[%emt 0:00:29]} 31. Rd1 {[%emt 0:00:50]} Ng5 {[%emt 0:01:15]} 32. Ke3 {[%emt 0:02:51]} Ne6 {[%emt 0:01:46]} 33. Nxe6+ {[%emt 0:01:25]} Rxe6 {[%emt 0:00:05]} 34. Rd7+ {[%emt 0:00:19]} Kg8 {[%emt 0:04:17]} 35. f4 {[%emt 0:02:03]} exf4+ {[%emt 0:00:31]} 36. Kxf4 {[%emt 0:00:03]} Re5 {[%emt 0:00:08]} 37. h4 {[%emt 0:02:10]} g5+ {[%emt 0:04:33]} 38. hxg5 {[%emt 0:00:32]} Rxg5 {[%emt 0:00:04]} 39. g4 {[%emt 0:01:07]} h5 {[%emt 0:01:10]} 40. gxh5 {[%emt 0:00:00]} Rxh5 {[%emt 0:00:00]} 1/2-1/2

[Event "EYCC Open-U10 2019"]
[Site "Bratislava"]
[Date "2019.08.09"]
[Round "8.8"]
[White "Gusev, Mikhail"]
[Black "Samunenkov, Ihor"]
[Result "1/2-1/2"]
[ECO "A43"]
[WhiteElo "1575"]
[BlackElo "1985"]
[Annotator "NA"]
[PlyCount "52"]
[EventDate "2019.08.02"]
[EventType "swiss"]
[EventCountry "SVK"]
[SourceTitle "playchess.com"]
[Source "ChessBase"]
[SourceQuality "1"]
[TimeControl "40/5400+30:1800+30"]

1. d4 {[%emt 0:00:00]} Nf6 {[%emt 0:00:00]} 2. Nf3 {[%emt 0:00:00]} c5 {[%emt 0:00:05]} 3. d5 {[%emt 0:00:00]} b5 {[%emt 0:01:00]} 4. Bg5 {[%emt 0:00:35]} Ne4 {[%emt 0:07:45]} 5. Nbd2 {[%emt 0:03:43]} Nxg5 {[%emt 0:05:43]} 6. Nxg5 {[%emt 0:00:02]} h6 {[%emt 0:03:48]} 7. Ngf3 {[%emt 0:00:16]} d6 {[%emt 0:00:16]} 8. e4 {[%emt 0:02:02]} a6 {[%emt 0:04:24]} 9. a4 {[%emt 0:01:03]} b4 {[%emt 0:00:16]} 10. Nc4 {[%emt 0:00:19]} Nd7 {[%emt 0:02:18]} 11. a5 {[%emt 0:01:30]} g6 {[%emt 0:03:28]} 12. Bd3 {[%emt 0:04:48]} Bg7 {[%emt 0:00:07]} 13. Qd2 {[%emt 0:01:49]} Qc7 {[%emt 0:02:13]} 14. O-O {[%emt 0:01:23]} O-O {[%emt 0:05:18]} 15. Rae1 {[%emt 0:04:52]} Rb8 {[%emt 0:08:42]} 16. Nh4 {[%emt 0:03:35]} Ne5 {[%emt 0:03:32]} 17. Nxe5 {[%emt 0:02:05]} dxe5 {[%emt 0:01:23]} 18. Qe2 {[%emt 0:01:57]} Qxa5 {[%emt 0:09:31]} 19. Ra1 {[%emt 0:00:24]} Qb6 {[%emt 0:00:26]} 20. Bxa6 {[%emt 0:00:27]} Bd7 {[%emt 0:01:33]} 21. Bc4 {[%emt 0:01:39]} Ra8 {[%emt 0:01:31]} 22. Nf3 {[%emt 0:01:54]} Bg4 {[%emt 0:02:21]} 23. h3 {[%emt 0:00:40]} Bxf3 {[%emt 0:00:20]} 24. Qxf3 {[%emt 0:00:02]} Ra7 {[%emt 0:01:25]} 25. Qb3 {[%emt 0:02:23]} Rfa8 {[%emt 0:04:36]} 26. Rxa7 {[%emt 0:00:40]} Rxa7 {[%emt 0:00:26]} 1/2-1/2